bitfinex/quotes_ETHUSD_20241215
["timestamp","ask_amount","ask_price","bid_price","bid_amount"]
[1734248174372,2.60159,3843.8,3843.2,0.8307]
[1734248174761,0.7757,3844.6,3843.2,0.8307]
[1734248175000,2.60147,3844.0,3843.2,0.8307]
[1734248175406,0.91629543,3844.5,3843.2,0.8307]
[1734248175609,0.7757,3845.0,3843.2,3.43265]
[1734248175770,2.60106,3844.6,3843.2,3.43265]
[1734248176110,2.60114,3844.5,3843.2,3.43265]
[1734248176403,0.7757,3845.0,3843.3,0.343265]
[1734248176404,2.60119,3844.4,3843.3,0.343265]
[1734248176813,1.38066256,3845.9,3843.4,0.8307]
[1734248176967,0.315003,3845.9,3844.1,0.8307]
[1734248177180,2.915203,3845.9,3844.5,3.43179]
[1734248177681,0.315003,3845.9,3844.5,0.8307]
[1734248177895,0.315003,3845.9,3844.9,0.8307]
[1734248178299,3.43483714,3846.6,3844.9,1.173858]
[1734248178628,0.52767524,3846.5,3845.0,0.8307]
[1734248178914,2.59952,3846.9,3845.5,0.8307]
[1734248179098,0.7757,3847.1,3845.5,0.8307]
[1734248179471,2.60006,3846.1,3845.5,0.8307]
[1734248179696,2.59986,3846.4,3845.5,0.8307]
[1734248179901,3.12582971,3846.3,3845.5,0.8307]
[1734248180211,2.59993,3846.3,3845.5,0.8307]
[1734248180536,2.59998,3846.2,3845.5,0.8307]
[1734248182064,2.59978,3846.5,3845.5,0.8307]
[1734248183047,2.59956,3846.8,3845.5,0.8307]
[1734248183342,2.59971,3846.6,3845.5,0.8307]
[1734248183713,2.59961,3846.8,3845.5,0.8307]
[1734248183917,0.51570981,3846.9,3845.5,0.8307]
[1734248184941,0.51570981,3846.9,3845.5,3.43112]
[1734248185112,0.51570981,3846.9,3845.6,0.343112]
[1734248185955,2.59904,3847.6,3846.2,0.7661]
[1734248186101,2.59917,3847.4,3846.2,0.7661]
[1734248186303,0.50862398,3847.5,3846.2,0.7661]
[1734248186499,0.92054383,3847.5,3846.2,0.7661]
[1734248186802,2.65913714,3847.0,3846.2,0.7661]
[1734248187002,2.59924,3847.3,3846.2,0.7661]
[1734248188344,0.50862398,3847.5,3846.2,0.7661]
[1734248188550,2.59876,3848.0,3846.6,0.7661]
[1734248188716,2.59886,3847.9,3846.7,0.336584]
[1734248189308,6.07884714,3848.4,3846.7,0.336584]
[1734248189309,2.59891,3847.8,3846.7,0.336584]
[1734248189504,4.22113714,3848.8,3846.8,0.7661]
[1734248189730,2.59873,3848.1,3846.8,0.7661]
[1734248189941,2.59877,3848.0,3847.0,0.7661]
[1734248190849,0.55,3848.4,3847.0,0.7661]
[1734248191068,2.59896,3847.7,3847.0,0.7661]
[1734248191246,2.59868,3848.1,3847.0,0.7661]
[1734248191413,2.59933,3847.2,3846.3,0.8044]
[1734248191613,3.55,3847.9,3846.3,0.8044]
[1734248191842,2.59903,3847.6,3846.3,0.8044]
[1734248192721,2.59917,3847.4,3846.3,0.8044]
[1734248193147,2.59931,3847.2,3846.3,0.8044]
[1734248193362,2.59888,3847.8,3846.3,0.8044]
[1734248193363,2.59943,3847.0,3846.3,0.8044]
[1734248193656,2.59957,3846.8,3846.3,0.8044]
[1734248194084,2.858638,3848.0,3846.3,0.8044]
[1734248194355,2.59907,3847.6,3846.3,0.8044]
[1734248194721,2.59909,3847.5,3846.3,0.8044]
[1734248195358,2.59922,3847.3,3846.3,0.8044]
[1734248195733,2.59887,3847.9,3846.3,0.8044]
[1734248196055,0.259868,3848.0,3846.3,0.8044]
[1734248196056,2.59934,3847.2,3846.3,0.8044]
[1734248196256,2.59931,3847.2,3846.3,0.8044]
[1734248196462,2.59946,3847.0,3846.3,0.8044]
[1734248197547,0.55,3847.2,3846.2,0.00156]
[1734248197857,2.5995,3846.9,3846.2,0.00156]
[1734248198162,2.59984,3846.4,3846.2,0.00156]
[1734248201665,0.62868751,3847.8,3846.3,0.8044]
[1734248201862,2.59883,3847.9,3846.5,2.59973]
[1734248202161,2.59883,3847.9,3846.6,0.8044]
[1734248202332,2.59883,3847.9,3846.7,0.340413]
[1734248202520,0.259868,3848.0,3846.7,0.340413]
[1734248202722,2.59889,3847.8,3846.7,0.340413]
[1734248203329,0.769,3848.5,3846.8,0.8044]
[1734248203563,2.5987,3848.1,3846.9,0.8044]
[1734248203735,0.5090162,3848.4,3847.2,0.8044]
[1734248204668,2.59872,3848.1,3847.2,0.8044]
[1734248204988,0.31077362,3848.1,3847.2,0.8044]
[1734248205188,2.59917,3847.4,3847.2,0.8044]
[1734248205523,2.59917,3847.4,3847.2,0.4022]
[1734248206068,1.07977362,3848.1,3846.2,0.00156]
[1734248206069,2.59925,3847.3,3846.2,0.00156]
[1734248206272,6.20913714,3847.9,3846.2,0.00156]
[1734248206563,2.59968,3846.7,3846.2,0.00156]
[1734248207361,2.59944,3847.0,3846.2,0.00156]
[1734248207536,5.65913714,3847.9,3846.2,0.00156]
[1734248207727,1.562,3848.2,3846.2,0.00156]
[1734248207728,2.5993,3847.2,3846.2,0.00156]
[1734248208461,2.59929,3847.2,3846.2,0.00156]
[1734248208665,2.59938,3847.1,3846.3,0.8044]
[1734248209163,2.5992,3847.4,3846.3,0.8044]
[1734248209663,2.59929,3847.2,3846.3,0.8044]
[1734248209820,3.20913714,3847.9,3846.3,0.8044]
[1734248210023,2.59925,3847.3,3846.3,0.8044]
[1734248210346,2.59931,3847.2,3846.3,0.8044]
[1734248210539,0.259925,3847.3,3846.3,0.8044]
[1734248210741,2.59888,3847.8,3846.3,0.8044]
[1734248210742,2.5995,3846.9,3846.3,0.8044]
[1734248211287,2.59895,3847.7,3846.3,0.8044]
[1734248211465,2.5994,3847.1,3846.3,0.8044]
[1734248211986,0.52068981,3847.8,3846.3,0.8044]
[1734248213483,2.59917,3847.4,3846.3,0.8044]
[1734248213683,2.59917,3847.4,3846.4,0.340598]
[1734248214180,0.52068981,3847.8,3846.5,0.7572]
[1734248214387,0.55,3847.7,3846.5,0.7572]
[1734248214676,2.59956,3846.8,3846.5,0.7572]
[1734248215181,0.55,3847.7,3846.5,0.7572]
[1734248215377,0.55,3847.5,3846.5,0.7572]
[1734248215589,2.59942,3847.1,3846.5,0.7572]
[1734248215753,2.59909,3847.5,3846.5,0.7572]
[1734248215754,2.59944,3847.0,3846.5,0.7572]
[1734248216126,2.5995,3846.9,3846.5,0.7572]
[1734248216394,0.7866,3847.2,3846.2,0.00156]
[1734248216588,2.59986,3846.4,3846.2,0.00156]
[1734248217415,2.59963,3846.7,3846.2,0.00156]
[1734248217746,2.54963,3846.7,3846.2,0.00156]
[1734248218581,6.20913714,3847.7,3846.2,0.00156]
[1734248218582,0.80187887,3847.6,3846.2,0.00156]
[1734248218791,2.59958,3846.8,3846.2,0.00156]
[1734248219135,3.55,3847.3,3846.2,0.00156]
[1734248219463,0.771115,3847.2,3846.2,0.00156]
[1734248219674,2.59939,3847.1,3846.2,0.00156]
[1734248219875,0.80187887,3847.6,3846.3,0.7572]
[1734248220080,2.59923,3847.3,3846.3,0.7572]
[1734248220381,2.59929,3847.2,3846.3,0.7572]
[1734248220584,1.98039135,3847.9,3846.3,0.7572]
[1734248220787,2.59911,3847.5,3846.3,0.7572]
[1734248221401,2.59907,3847.6,3846.3,0.7572]
[1734248221602,2.59907,3847.6,3846.5,0.7572]
[1734248222140,2.59861,3848.3,3847.0,2.59941]
[1734248222294,2.59861,3848.3,3847.1,2.59934]
[1734248222604,2.59861,3848.3,3847.2,0.7572]
[1734248222993,0.51436578,3848.4,3846.5,2.59976]
[1734248223199,5.33205886,3849.2,3846.5,2.59976]
[1734248223200,1.06565956,3848.9,3847.9,0.7572]
[1734248223403,1.59848935,3849.1,3847.6,0.7572]
[1734248223404,1.06565956,3849.1,3847.6,0.7572]
[1734248223579,2.59788,3849.3,3847.7,2.59895]
[1734248223781,1.06565956,3849.5,3847.5,2.1330332]
[1734248224084,5.87655323,3849.5,3847.6,2.59902]
[1734248224291,4.2301876,3849.4,3848.0,2.59874]
[1734248224485,0.74750426,3849.4,3848.2,2.5986]
[1734248224784,0.74750426,3849.4,3848.0,2.59869]
[1734248225104,2.59776,3849.5,3848.1,2.59866]
[1734248225788,2.54776,3849.5,3848.1,2.59866]
[1734248226314,1.06565956,3849.7,3847.7,0.73310832]
[1734248226315,2.65956251,3849.7,3847.7,0.73310832]
[1734248226615,2.59804,3849.1,3847.7,2.59891]
[1734248226810,2.59811,3849.0,3847.8,0.7572]
[1734248227680,2.59841,3848.5,3847.8,0.7572]
[1734248227920,3.4067,3849.3,3847.8,0.7572]
[1734248227921,3.46836251,3849.3,3847.8,0.7572]
[1734248228089,3.48158482,3849.2,3847.8,0.7572]
[1734248228294,2.59829,3848.7,3847.8,0.7572]
[1734248229880,2.59836,3848.6,3847.8,0.7572]
[1734248230582,0.80156069,3849.1,3847.8,0.7572]
[1734248230804,0.55,3849.2,3847.8,0.7572]
[1734248231082,2.67116128,3849.9,3847.8,0.7572]
[1734248231083,2.59809,3849.0,3847.8,0.7572]
[1734248231825,2.59792,3849.3,3847.7,0.8287]
[1734248231983,2.59776,3849.5,3848.2,2.59859]
[1734248232183,2.59762,3849.7,3848.3,2.59853]
[1734248232385,2.59762,3849.7,3848.4,2.59842]
[1734248232619,2.59743,3850.0,3848.5,2.59838]
[1734248232844,2.59719,3850.4,3849.1,0.8287]
[1734248233134,0.5300973,3850.9,3849.6,0.8287]
[1734248233337,2.59656,3851.3,3849.8,2.59749]
[1734248233523,1.47260051,3851.8,3850.1,0.8287]
[1734248233524,2.59635,3851.6,3850.1,0.8287]
[1734248234039,2.59635,3851.6,3850.2,0.8287]
[1734248234239,4.49048956,3852.2,3850.2,0.8287]
[1734248234240,2.59648,3851.4,3850.2,0.8287]
[1734248234385,0.50972493,3851.8,3850.2,1.43727125]
[1734248234386,2.59642,3851.5,3850.2,1.43727125]
[1734248234582,2.5968,3850.9,3850.2,1.43727125]
[1734248234782,2.5968,3850.9,3850.2,0.8287]
[1734248235104,2.59663,3851.2,3850.2,0.8287]
[1734248235647,2.59643,3851.5,3850.2,0.8287]
[1734248236148,2.59605,3852.1,3850.2,0.8287]
[1734248236355,0.342495,3852.0,3850.2,0.8287]
[1734248236499,2.59632,3851.6,3850.2,0.8287]
[1734248236704,2.59682,3850.9,3850.2,0.8287]
[1734248237276,2.65956251,3851.7,3850.2,0.8287]
[1734248237277,2.59629,3851.7,3850.3,0.8287]
[1734248237406,2.59629,3851.7,3850.4,0.8287]
[1734248237602,2.59629,3851.7,3850.6,0.8287]
[1734248237802,0.342495,3852.0,3850.6,0.8287]
[1734248238043,2.938605,3852.0,3850.6,0.8287]
[1734248238246,2.59666,3851.1,3850.6,0.8287]
[1734248238406,2.59673,3851.0,3850.6,0.8287]
[1734248238809,0.55,3851.8,3850.6,0.8287]
[1734248239032,0.55,3851.8,3849.2,0.8287]
[1734248239033,2.59714,3850.4,3849.2,0.8287]
[1734248239640,2.59697,3850.7,3849.3,0.8287]
[1734248240012,2.59645,3851.4,3849.4,0.8287]
[1734248240215,2.59688,3850.8,3849.5,2.59769]
[1734248240418,0.55,3851.6,3849.6,0.8287]
[1734248240615,2.59712,3850.5,3849.6,0.8287]
[1734248240947,2.59716,3850.4,3849.6,0.8287]
[1734248241144,0.55,3851.4,3849.6,0.8287]
[1734248241348,2.59693,3850.7,3849.6,0.8287]
[1734248241548,2.59695,3850.7,3849.6,0.8287]
[1734248241841,2.59695,3850.7,3849.8,0.8287]
[1734248243262,0.43789,3851.5,3849.8,0.8287]
[1734248243263,2.59701,3850.6,3849.8,0.8287]
[1734248246721,0.43789,3851.5,3849.8,0.8287]
[1734248247055,2.59707,3850.5,3849.8,0.8287]
[1734248247957,0.43789,3851.5,3849.8,0.8287]
[1734248247958,2.5972,3850.3,3849.8,0.8287]
[1734248248318,2.59741,3850.0,3849.8,0.8287]
[1734248248519,2.5976,3849.8,3848.5,2.59839]
[1734248248715,2.5976,3849.8,3848.6,0.8287]
[1734248249015,2.85693,3850.3,3848.6,0.8287]
[1734248249251,2.59788,3849.3,3848.6,0.8287]
[1734248249416,2.85693,3850.3,3848.6,0.8287]
[1734248249417,2.59762,3849.7,3848.6,0.8287]
[1734248249729,0.25972,3850.3,3848.6,0.8287]
[1734248250055,0.8289,3850.0,3848.6,0.8287]
[1734248250260,2.59827,3848.8,3848.6,0.8287]
[1734248251332,3.41296,3849.1,3847.5,0.7754]
[1734248251535,2.59859,3848.3,3847.5,0.7754]
[1734248252473,2.59843,3848.5,3847.5,0.7754]
[1734248252777,2.5985,3848.4,3847.5,0.7754]
[1734248253156,2.59856,3848.3,3847.5,0.7754]
[1734248253331,2.5984,3848.6,3847.5,0.7754]
[1734248253534,0.8149,3849.1,3847.5,0.7754]
[1734248253756,2.59858,3848.3,3847.5,0.7754]
[1734248254461,2.79299773,3849.0,3847.5,0.7754]
[1734248254759,2.59884,3847.9,3847.5,0.7754]
[1734248255666,0.55,3848.9,3847.5,0.7754]
[1734248255667,2.5989,3847.8,3847.5,0.7754]
[1734248257160,2.59821,3848.8,3846.4,0.7584]
[1734248257161,3.43856251,3848.2,3846.4,0.7584]
[1734248257461,6.03720251,3848.2,3846.4,0.7584]
[1734248257645,2.5989,3847.8,3846.4,2.5998]
[1734248257820,2.59904,3847.6,3846.5,0.7584]
[1734248258545,2.59909,3847.5,3846.5,0.7584]
[1734248258783,3.43856251,3848.2,3846.6,0.37584]
[1734248259089,3.55,3848.1,3846.5,0.7584]
[1734248259454,2.59875,3848.0,3846.5,0.7584]
[1734248259688,2.59926,3847.3,3846.5,0.7584]
[1734248260354,2.59923,3847.3,3846.5,0.7584]
[1734248260552,2.59888,3847.9,3846.5,0.7584]
[1734248260787,0.614888,3847.8,3846.5,0.7584]
[1734248261002,2.59851,3848.4,3847.1,2.59935]
[1734248261148,2.59851,3848.4,3847.3,0.7584]
[1734248261354,2.59856,3848.3,3847.3,0.7584]
[1734248261914,2.5981,3849.0,3847.3,0.7584]
[1734248262062,2.59883,3847.9,3847.3,0.7584]
[1734248262388,2.59848,3848.5,3847.3,0.7584]
[1734248262587,2.5987,3848.1,3847.3,0.7584]
[1734248263293,2.59877,3848.0,3847.3,0.7584]
[1734248265017,3.11827914,3848.9,3847.3,0.7584]
[1734248265187,4.27411354,3848.8,3847.3,0.7584]
[1734248265365,2.59852,3848.4,3847.3,0.7584]
[1734248265990,0.34385625,3849.0,3847.3,0.7584]
[1734248266163,2.59828,3848.7,3847.5,0.7584]
[1734248266381,2.59848,3848.4,3847.5,0.7584]
[1734248266576,2.59824,3848.8,3847.5,0.7584]
[1734248266776,2.59866,3848.2,3847.5,0.7584]
[1734248267063,2.59845,3848.5,3847.5,0.7584]
[1734248267267,2.13354098,3848.8,3847.5,0.7584]
[1734248267589,2.59856,3848.3,3847.5,0.7584]
[1734248267789,0.5281681,3848.7,3847.5,0.7584]
[1734248267790,2.59828,3848.7,3847.5,0.7584]
[1734248267976,2.59835,3848.6,3847.5,0.7584]
[1734248268310,2.59844,3848.5,3847.5,0.7584]
[1734248269191,2.13354098,3848.9,3847.5,0.7584]
[1734248269362,2.59826,3848.8,3847.5,0.7584]
[1734248269784,2.59826,3848.8,3847.1,2.59936]
[1734248270032,2.59826,3848.8,3847.4,3.0]
[1734248270402,2.59829,3848.7,3847.4,3.0]
[1734248270573,2.59821,3848.8,3847.3,3.0]
[1734248270903,2.59838,3848.6,3847.2,1.0332381]
[1734248271206,2.59838,3848.6,3847.4,3.0]
[1734248272513,2.13354098,3848.9,3847.1,3.0]
[1734248272722,2.59859,3848.3,3847.1,3.0]
[1734248273003,2.59859,3848.3,3847.2,0.7103]
[1734248273501,2.13354098,3848.5,3847.2,0.7103]
[1734248273704,2.8118341,3848.4,3847.2,0.7103]
[1734248274417,2.59904,3847.6,3847.2,0.7103]
[1734248274877,2.13354098,3848.1,3847.2,0.7103]
[1734248275085,2.13354098,3848.1,3845.7,2.13354098]
[1734248275086,2.59925,3847.3,3846.3,0.7103]
[1734248275612,2.13354098,3847.7,3846.3,0.7103]
[1734248275910,2.59936,3847.1,3846.3,0.7103]
[1734248276106,0.2133541,3847.6,3846.3,0.7103]
[1734248276412,2.59944,3847.0,3846.3,0.7103]
[1734248277604,0.2133541,3847.6,3846.3,0.7103]
[1734248277605,2.13354098,3847.3,3846.3,0.7103]
[1734248277783,2.59975,3846.6,3846.3,0.7103]
[1734248277987,2.59977,3846.5,3846.3,0.7103]
[1734248278483,2.59984,3846.4,3845.9,0.7103]
[1734248278828,2.59964,3846.7,3845.9,0.7103]
[1734248278971,2.59973,3846.6,3845.9,0.7103]
[1734248279780,2.13354098,3846.9,3845.9,0.7103]
[1734248279980,0.4732931,3846.8,3845.9,0.7103]
[1734248280197,2.59967,3846.7,3845.9,0.7103]
[1734248280414,0.9875541,3847.6,3846.3,0.7103]
[1734248280615,0.9875541,3847.6,3846.5,0.7103]
[1734248280616,2.59911,3847.5,3846.5,0.7103]
[1734248280774,2.59911,3847.5,3846.6,0.02389174]
[1734248281332,2.13354098,3847.8,3846.6,0.02389174]
[1734248281333,4.73243098,3847.8,3846.6,0.39731091]
[1734248281529,2.13354098,3847.8,3846.6,0.39731091]
[1734248281747,2.59903,3847.6,3846.6,0.02389174]
[1734248282048,2.90774098,3848.2,3846.2,0.00156]
[1734248282190,4.32553493,3849.4,3846.8,2.59955]
[1734248282191,2.59874,3848.1,3846.8,2.59955]
[1734248282385,2.13354098,3848.6,3847.2,2.59926]
[1734248282588,2.59831,3848.7,3846.7,2.59959]
[1734248282589,2.59833,3848.7,3847.4,2.5991]
[1734248282891,2.90774098,3849.0,3847.6,0.7103]
[1734248283110,2.59825,3848.8,3847.6,0.7103]
[1734248283286,2.90774098,3849.0,3847.6,0.7103]
[1734248283287,2.59834,3848.7,3847.6,0.7103]
[1734248284024,5.59819,3848.9,3847.6,0.7103]
[1734248284386,2.13354098,3849.0,3847.6,0.7103]
[1734248284623,2.59828,3848.7,3847.6,0.7103]
[1734248284824,2.59838,3848.6,3847.6,0.7103]
[1734248285242,2.5982,3848.9,3847.7,0.7103]
[1734248285445,2.59823,3848.8,3847.7,0.7103]
[1734248285830,2.13354098,3849.0,3847.7,0.7103]
[1734248286154,2.13354098,3849.0,3847.8,0.330929]
[1734248286155,4.73164098,3849.0,3847.8,0.330929]
[1734248287266,2.59838,3848.6,3847.7,0.7103]
[1734248287950,2.13354098,3849.0,3847.7,0.7103]
[1734248288116,2.59821,3848.8,3847.7,0.7103]
[1734248288724,2.59832,3848.7,3847.7,0.7103]
[1734248288944,2.59837,3848.6,3847.7,0.7103]
[1734248289829,2.13354098,3849.0,3847.7,0.7103]
[1734248290169,2.59868,3848.1,3846.7,0.7103]
[1734248290354,2.59866,3848.2,3846.4,0.7103]
[1734248290541,2.59866,3848.2,3847.0,0.7103]
[1734248291742,2.59869,3848.1,3847.0,0.7103]
[1734248292659,0.55,3848.5,3847.0,0.7103]
[1734248292862,2.5989,3847.8,3847.0,0.7103]
[1734248293049,2.5989,3847.8,3845.6,2.15923719]
[1734248293050,2.13354098,3847.8,3846.3,0.7103]
[1734248293368,2.59938,3847.1,3846.3,0.7103]
[1734248294171,2.13354098,3847.8,3846.3,0.7103]
[1734248294543,2.59931,3847.2,3846.3,0.7103]
[1734248296170,3.42559,3847.5,3846.3,0.7103]
[1734248296376,2.59945,3847.0,3846.3,0.7103]
[1734248296575,2.59929,3847.2,3846.3,0.7103]
[1734248297380,2.59952,3846.9,3846.3,0.7103]
[1734248297542,5.13031998,3847.4,3846.3,0.7103]
[1734248297543,0.397559,3847.4,3846.3,0.7103]
[1734248298337,2.59923,3847.3,3846.3,0.7103]
[1734248298543,2.59923,3847.3,3846.3,1.041495]
[1734248298850,3.0,3847.6,3846.3,1.041495]
[1734248299058,2.59909,3847.5,3846.3,0.7103]
[1734248299383,0.55,3847.5,3846.3,0.7103]
[1734248299676,2.59944,3847.0,3846.3,0.7103]
[1734248300106,2.59924,3847.3,3846.3,0.7103]
[1734248300271,2.59924,3847.3,3846.3,1.041495]
[1734248301481,3.0,3847.7,3846.3,1.041495]
[1734248301642,2.59916,3847.4,3846.3,1.041495]
[1734248302080,3.0,3847.7,3846.3,1.041495]
[1734248302449,2.59902,3847.6,3846.3,1.041495]
[1734248302798,2.59909,3847.5,3846.3,1.041495]
[1734248303500,2.59923,3847.3,3846.3,0.7103]
[1734248304051,3.61274548,3847.6,3846.3,0.7103]
[1734248304496,1.01366548,3847.6,3846.3,0.7103]
[1734248304678,2.5991,3847.5,3846.3,0.7103]
[1734248305992,2.59917,3847.4,3846.3,0.7103]
[1734248306150,2.59918,3847.4,3846.3,0.7103]
[1734248306486,2.59923,3847.3,3846.3,1.041494]
[1734248307071,1.01366548,3847.6,3846.3,0.7103]
[1734248307382,2.59951,3846.9,3846.3,0.7103]
[1734248308269,3.55,3847.7,3846.3,0.7103]
[1734248308473,2.59929,3847.3,3846.3,0.7103]
[1734248308993,2.59956,3846.8,3846.3,0.7103]
[1734248309749,4.61565956,3847.7,3846.3,0.7103]
[1734248309954,2.59943,3847.0,3846.3,0.7103]
[1734248310992,0.7908,3847.5,3846.3,0.7103]
[1734248311191,0.7908,3847.5,3846.2,0.00156]
[1734248311192,2.59964,3846.7,3846.2,0.00156]
[1734248312519,2.59971,3846.6,3846.2,0.00156]
[1734248313013,2.59936,3847.1,3846.2,0.00156]
[1734248313171,2.59964,3846.7,3846.2,0.00156]
[1734248313578,0.259936,3847.0,3846.2,0.00156]
[1734248313579,2.59976,3846.5,3846.2,0.00156]
[1734248313811,2.59987,3846.4,3846.2,0.00156]
[1734248315401,2.59955,3846.9,3846.2,0.00156]
[1734248315714,2.5997,3846.6,3846.2,0.00156]
[1734248315914,0.23873205,3846.5,3846.2,0.00156]
[1734248316476,2.5997,3846.6,3846.2,0.00156]
[1734248316672,0.23876425,3846.5,3846.2,0.00156]
[1734248316871,2.5997,3846.6,3846.2,0.00156]
[1734248317075,2.93325393,3846.6,3846.2,0.00156]
[1734248317312,0.33355393,3846.6,3846.2,0.00156]
[1734248317498,2.83860605,3846.5,3846.2,0.00156]
[1734248317705,2.59977,3846.5,3846.2,0.00156]
[1734248318111,0.23888919,3846.4,3846.2,0.00156]
[1734248319710,2.59983,3846.4,3846.2,0.00156]
[1734248320485,0.2389851,3846.3,3846.2,0.00156]
[1734248321623,0.73583933,3846.8,3846.2,0.00156]
[1734248321624,2.8387551,3846.5,3846.2,0.00156]
[1734248321796,0.2389851,3846.4,3846.2,0.00156]
[1734248322120,2.8388151,3846.4,3846.2,0.00156]
[1734248322344,0.2389851,3846.3,3846.2,0.00156]
[1734248322479,2.59983,3846.4,3846.2,0.00156]
[1734248322679,0.23904242,3846.3,3846.2,0.00156]
[1734248324321,3.91362966,3846.3,3846.2,0.00156]
[1734248324623,4.46362966,3846.3,3846.2,0.00156]
[1734248324810,7.46362966,3846.3,3846.2,0.00156]
[1734248325508,7.46344646,3846.3,3846.2,0.00156]
[1734248327239,2.60064,3845.2,3845.0,0.7103]
[1734248327537,2.13354098,3845.6,3844.1,0.7103]
[1734248327703,2.13354098,3845.6,3844.2,0.631175]
[1734248327704,2.60071,3845.1,3844.2,0.631175]
[1734248328333,2.60085,3844.9,3844.2,0.631175]
[1734248328510,2.60088,3844.9,3844.1,0.7103]
[1734248328895,5.13354098,3845.2,3844.1,0.7103]
[1734248329099,2.60093,3844.8,3844.1,0.7103]
[1734248329502,2.60113,3844.5,3844.1,0.7103]
[1734248330196,0.260113,3844.4,3843.7,0.7103]
[1734248330403,2.60128,3844.3,3843.7,0.7103]
[1734248330895,3.12798034,3844.3,3843.7,0.7103]
[1734248331096,0.52670034,3844.3,3843.3,0.7103]
[1734248331518,2.13354098,3845.3,3843.7,0.7103]
[1734248331725,2.6008,3845.0,3843.9,0.7103]
[1734248332121,0.53023663,3844.9,3844.0,0.331195]
[1734248332430,0.53023663,3844.9,3843.9,0.7103]
[1734248333035,2.66377761,3844.9,3843.9,0.7103]
[1734248333194,0.8231,3844.8,3843.9,0.7103]
[1734248334023,2.6011,3844.6,3843.9,0.7103]
[1734248334312,0.55,3844.7,3843.9,0.7103]
[1734248334509,2.60139,3844.1,3843.1,0.7103]
[1734248335304,2.60146,3844.0,3843.1,0.7103]
[1734248335540,2.13354098,3844.5,3843.1,0.7103]
[1734248335541,0.8231,3844.4,3843.1,0.7103]
[1734248335845,2.13354098,3844.1,3843.1,0.7103]
[1734248336019,0.23712285,3844.0,3843.1,0.7103]
[1734248336218,2.6018,3843.5,3843.1,0.7103]
[1734248336459,2.83864285,3844.0,3842.8,0.7103]
[1734248336460,2.13354098,3843.7,3842.8,0.7103]
[1734248336642,2.60189,3843.4,3842.8,0.7103]
[1734248336973,3.0,3842.8,3842.2,0.01]
[1734248337268,2.6025,3842.5,3842.2,0.01]
[1734248337447,0.902743,3842.7,3842.2,0.01]
[1734248337685,2.60243,3842.6,3842.2,0.01]
[1734248338614,3.42558,3842.5,3842.2,0.01]
[1734248339445,3.50664098,3842.3,3842.2,0.01]
[1734248339613,2.13354098,3841.7,3840.2,2.60401]
[1734248339975,2.60298,3841.8,3840.4,0.7103]
[1734248340247,0.8231,3842.0,3840.4,0.7103]
[1734248340650,2.60307,3841.7,3840.4,0.7103]
[1734248341350,2.13354098,3842.1,3840.0,1.3728913]
[1734248341351,0.8231,3841.6,3840.0,1.3728913]
[1734248341567,0.8231,3842.1,3840.2,0.7103]
[1734248341867,0.8231,3842.1,3840.1,0.15057641]
[1734248341868,2.95664098,3842.1,3840.4,0.7103]
[1734248342186,2.60302,3841.7,3840.4,0.7103]
[1734248342388,5.55939098,3842.1,3840.4,0.7103]
[1734248342545,2.95664098,3842.1,3840.4,0.7103]
[1734248342758,1.16999236,3842.1,3840.4,0.7103]
[1734248342928,0.8231,3842.1,3840.4,0.7103]
[1734248343127,2.60282,3842.0,3840.4,0.7103]
[1734248343358,0.8231,3842.1,3840.7,2.60364]
[1734248343579,0.51228259,3842.3,3840.8,0.7103]
[1734248343780,0.8231,3842.5,3840.8,0.7103]
[1734248343947,0.342553,3842.4,3840.8,3.31388]
[1734248344276,2.60265,3842.3,3841.0,2.60347]
[1734248344463,0.86113436,3842.4,3841.1,0.7103]
[1734248344662,0.86113436,3842.4,3841.2,2.60332]
[1734248344870,2.6026,3842.3,3841.1,0.7103]
[1734248345083,4.73640098,3842.0,3841.1,0.7103]
[1734248345230,0.8231,3841.1,3838.3,0.25]
[1734248345426,4.73732098,3840.6,3839.2,2.68497768]
[1734248345626,2.60356,3840.9,3839.4,2.60455]
[1734248345829,0.5560201,3840.8,3839.4,2.60455]
[1734248346132,0.5560201,3840.8,3839.2,0.08029768]
[1734248346337,2.60379,3840.6,3839.2,2.68495768]
[1734248346739,2.60386,3840.5,3839.2,0.08029768]
[1734248347051,2.60377,3840.6,3839.2,0.08029768]
[1734248347259,0.8231,3840.7,3839.2,0.08029768]
[1734248347496,2.604,3840.3,3839.2,0.08029768]
[1734248347771,2.60407,3840.2,3839.2,0.08029768]
[1734248347936,0.8231,3840.1,3839.2,0.08029768]
[1734248348572,3.42708,3840.3,3839.2,0.08029768]
[1734248348757,2.60406,3840.2,3839.2,0.08029768]
[1734248348931,0.8231,3840.3,3839.2,0.08029768]
[1734248349932,3.42707,3840.3,3839.2,0.08029768]
[1734248350350,0.8231,3840.3,3839.2,0.08029768]
[1734248350579,2.60377,3840.6,3839.2,2.68498768]
[1734248351252,0.60742193,3840.6,3839.2,0.08029768]
[1734248351434,2.60387,3840.5,3839.2,0.08029768]
[1734248351641,2.60404,3840.2,3839.2,0.08029768]
[1734248351859,0.60742193,3840.6,3839.2,0.08029768]
[1734248352067,2.60386,3840.5,3839.2,0.08029768]
[1734248352351,0.40092819,3840.4,3839.2,0.08029768]
[1734248352711,2.60399,3840.3,3839.2,0.08029768]
[1734248353346,2.60444,3839.6,3839.2,0.08029768]
[1734248354237,0.798,3839.7,3839.2,0.08029768]
[1734248354571,2.60463,3839.4,3839.2,0.08029768]
[1734248355372,0.798,3839.7,3839.2,0.08029768]
[1734248355575,2.60445,3839.6,3839.2,0.08029768]
[1734248355806,2.60451,3839.5,3839.2,0.08029768]